Workbook

Sheet 5月份
A1: 陆 丰 市 2022 年 5 月 财 政 预 算 支 出 完 成 情 况 表
A2: 2022-05-31 | O2: 单位：万元
B3: 年 初 | C3: 年度预算计划 | F3: 累计 | G3: 占年 | H3: 上年 | I3: 比上年 | J3: 比上年 | K3: 本月 | L3: 上年 | M3: 比上年 | N3: 比上年
A4: 支 出 项 目 | B4: 预 算 | F4: 完成 | G4: 预算 | H4: 同期 | I4: 同期增 | J4: 同期增 | K4: 完成 | L4: 同月 | M4: 同月增 | N4: 同月增 | O4: 备 注
B5: 数 | C5: 上年结转 | D5: 上级补助 | E5: 本级安排 | F5: 数 | G5: % | H5: 完成 | I5: 减额 | J5: (减)% | K5: 数 | L5: 完成 | M5: 减额 | N5: (减)%
A6: 201、一般公共服务支出 | D6: 222.22 | E6: 51,911.00 | F6: 35,852 | H6: 29,369 | I6: =F6-H6 -> 6,483 | J6: =I6/H6*100 -> 22.07 | K6: 2,345 | L6: 2,805 | M6: =K6-L6 -> -460 | N6: =M6/L6*100 -> -16.40
A7: 203、国防支出 | H7: 121 | I7: =F7-H7 -> -121 | J7: =I7/H7*100 -> -100.00 | L7: 11
A8: 204、公共安全支出 | D8: 15.00 | E8: 45,818.00 | F8: 16,944 | H8: 23,186 | I8: =F8-H8 -> -6,242 | J8: =I8/H8*100 -> -26.92 | K8: 1,693 | L8: 1,982 | M8: =K8-L8 -> -289 | N8: =M8/L8*100 -> -14.58
A9: 205、教育支出 | D9: 3,330.76 | E9: 208,849.00 | F9: 67,052 | H9: 125,549 | I9: =F9-H9 -> -58,497 | J9: =I9/H9*100 -> -46.59 | K9: 15,474 | L9: 21,504 | M9: =K9-L9 -> -6,030 | N9: =M9/L9*100 -> -28.04
A10: 206、科学技术支出 | E10: 2,354.00 | F10: 3,342 | H10: 4,232 | I10: =F10-H10 -> -890 | J10: =I10/H10*100 -> -21.03 | K10: 7 | L10: 350 | M10: =K10-L10 -> -343 | N10: =M10/L10*100 -> -98.00
A11: 207、文化体育与传媒支出 | D11: 231.50 | E11: 14,952.00 | F11: 2,585 | H11: 8,618 | I11: =F11-H11 -> -6,033 | J11: =I11/H11*100 -> -70.00 | K11: 319 | L11: 408 | M11: =K11-L11 -> -89 | N11: =M11/L11*100 -> -21.81
A12: 208、社会保障和就业支出 | D12: 2,042.20 | E12: 120,228.00 | F12: 81,999 | H12: 62,414 | I12: =F12-H12 -> 19,585 | J12: =I12/H12*100 -> 31.38 | K12: 7,765 | L12: 6,501 | M12: =K12-L12 -> 1,264 | N12: =M12/L12*100 -> 19.44
A13: 210、卫生健康支出 | D13: 2,158.11 | E13: 157,329.00 | F13: 101,811 | H13: 71,813 | I13: =F13-H13 -> 29,998 | J13: =I13/H13*100 -> 41.77 | K13: 4,988 | L13: 2,485 | M13: =K13-L13 -> 2,503 | N13: =M13/L13*100 -> 100.72
A14: 211、节能环保支出 | E14: 6,363.00 | F14: 2,477 | H14: 1,996 | I14: =F14-H14 -> 481 | J14: =I14/H14*100 -> 24.10 | K14: 1,707 | M14: =K14-L14 -> 1,707
A15: 212、城乡社区支出 | D15: 777.88 | E15: 33,031.00 | F15: 18,333 | H15: 11,957 | I15: =F15-H15 -> 6,376 | J15: =I15/H15*100 -> 53.32 | K15: 4,410 | L15: 634 | M15: =K15-L15 -> 3,776 | N15: =M15/L15*100 -> 595.58
A16: 213、农林水支出 | D16: 23,226.40 | E16: 128,268.00 | F16: 32,227 | H16: 52,664 | I16: =F16-H16 -> -20,437 | J16: =I16/H16*100 -> -38.81 | K16: 5,188 | L16: 2,179 | M16: =K16-L16 -> 3,009 | N16: =M16/L16*100 -> 138.09
A17: 214、交通运输支出 | D17: 2,831.00 | E17: 24,936.00 | F17: 42,323 | H17: 13,181 | I17: =F17-H17 -> 29,142 | J17: =I17/H17*100 -> 221.09 | K17: 17,088 | L17: 86 | M17: =K17-L17 -> 17,002 | N17: =M17/L17*100 -> 19,769.77
A18: 215、资源勘探信息等支出 | E18: 430.00 | F18: 168 | H18: 314 | I18: =F18-H18 -> -146 | J18: =I18/H18*100 -> -46.50 | K18: 10 | L18: 21 | M18: =K18-L18 -> -11 | N18: =M18/L18*100 -> -52.38
A19: 216、商业服务业等支出 | E19: 796.00 | F19: 794 | H19: 731 | I19: =F19-H19 -> 63 | J19: =I19/H19*100 -> 8.62 | K19: 484 | L19: 301 | M19: =K19-L19 -> 183 | N19: =M19/L19*100 -> 60.80
A20: 217、金融支出 | E20: 185.00 | F20: 11,800 | I20: =F20-H20 -> 11,800
A21: 220、自然资源海洋气象等支出 | E21: 6,653.00 | F21: 1,942 | H21: 4,653 | I21: =F21-H21 -> -2,711 | J21: =I21/H21*100 -> -58.26 | K21: 551 | L21: 381 | M21: =K21-L21 -> 170 | N21: =M21/L21*100 -> 44.62
A22: 221、住房保障支出 | D22: 447.25 | E22: 15,011.00 | F22: 4,112 | H22: 4,435 | I22: =F22-H22 -> -323 | J22: =I22/H22*100 -> -7.28 | K22: 489 | L22: 912 | M22: =K22-L22 -> -423 | N22: =M22/L22*100 -> -46.38
A23: 222、粮油物资储备支出 | E23: 4,882.00 | F23: 1,181 | H23: 613 | I23: =F23-H23 -> 568 | J23: =I23/H23*100 -> 92.66 | K23: 296 | M23: =K23-L23 -> 296
A24: 224、灾害防治及应急管理支出 | D24: 210.00 | E24: 3,504.00 | F24: 1,360 | H24: 1,532 | I24: =F24-H24 -> -172 | J24: =I24/H24*100 -> -11.23 | K24: 596 | L24: 97 | M24: =K24-L24 -> 499 | N24: =M24/L24*100 -> 514.43
A25: 232、债务付息支出 | D25: 2010.55 | E25: 1,600.00 | F25: 520 | H25: 534 | I25: =F25-H25 -> -14 | J25: =I25/H25*100 -> -2.62 | K25: 56
A26: 233、债务发行费用支出 | F26: 13
A27: 229、其他支出 | E27: 42,880.00 | F27: 1,559 | H27: 1,051 | I27: =F27-H27 -> 508 | J27: =I27/H27*100 -> 48.33 | K27: 15 | L27: 33 | M27: =K27-L27 -> -18 | N27: =M27/L27*100 -> -54.55
A28: 一、一般公共预算支出合计 | C28: =SUM(C6:C27) -> 0 | D28: =SUM(D6:D27) -> 37,503 | E28: =SUM(E6:E27) -> 869,980 | F28: =SUM(F6:F27) -> 428,394 | H28: =SUM(H6:H27) -> 418,963 | I28: =F28-H28 -> 9,431 | J28: =I28/H28*100 -> 2.25 | K28: =SUM(K6:K27) -> 63,481 | L28: =SUM(L6:L27) -> 40,690 | M28: =K28-L28 -> 22,791 | N28: =M28/L28*100 -> 56.01
A29: 二、政府性基金预算支出 | D29: 121800 | E29: 192576 | F29: 173,435 | H29: 38,156 | I29: =F29-H29 -> 135,279 | J29: =I29/H29*100 -> 354.54 | K29: 23,433 | L29: 83 | M29: =K29-L29 -> 23,350 | N29: =M29/L29*100 -> 28,132.53
A30: 三、国有资本经营支出 | E30: 963 | F30: 66 | H30: 19 | I30: =F30-H30 -> 47 | J30: =I30/H30*100 -> 247.37 | K30: 4 | M30: =K30-L30 -> 4
A31: 四、债务还本支出 | K31: =F31-'[1]2月份'!F31 -> 0
A32: 支出合计 | C32: =C28+C29+C30 -> 0 | D32: =D28+D29+D30 -> 159,303 | E32: =E28+E29+E30 -> 1,063,519 | F32: =F28+F29+F30+F31 -> 601,895 | H32: =H28+H29+H30+H31 -> 457,138 | I32: =F32-H32 -> 144,757 | J32: =I32/H32*100 -> 31.67 | K32: =K28+K29+K30+K31 -> 86,918 | L32: =L28+L29+L30+L31 -> 40,773 | M32: =K32-L32 -> 46,145 | N32: =M32/L32*100 -> 113.18
A33: 注：2022年度预算草案还未通过人大决议，故本表没有反映年度预算数和占比数。

Sheet Sheet1

Sheet Sheet2

Sheet Sheet3
